{"text_format":"1","workbook":"xlsx","n_sheets":4,"sheets":["1 Specifikation","2 Avtalstecknande","Admin","SysAdmin"],"not_rendered":{"charts":0,"images":2,"macros":1,"external_links":1,"defined_names":99,"comments":0,"pivot_tables":0},"unopened":[],"bounds":{"document_bytes":16777216,"sheet_cells":100000,"rows_first":2000,"rows_last":500,"rows_between":2000,"halvings":0,"cell_chars":16384,"cell_head_chars":4096},"cells_cut":0,"cells_raw":0,"read":"whole","date_system":"1900"}

{"sheet":"1 Specifikation","index":0,"n_rows":248,"n_cols":34,"rows_kept":248,"cut":false,"hidden":false,"merged":[[138,1,138,2],[137,1,137,2],[133,3,133,10],[135,3,135,10],[138,3,138,10],[146,3,146,10],[139,3,139,10],[140,3,140,10],[141,3,141,10],[142,3,142,10],[143,3,143,10],[144,3,144,10],[145,3,145,10],[134,1,134,2],[136,1,136,2],[134,3,134,10],[60,15,60,20],[187,23,236,27],[116,1,116,9],[112,1,112,3],[113,1,113,3],[114,1,114,3],[109,1,109,3],[110,1,110,3],[113,16,113,23],[114,16,114,23],[109,16,109,23],[110,16,110,23],[111,16,111,23],[112,16,112,23],[111,1,111,3],[231,15,231,22],[232,15,232,22],[158,20,158,21],[127,3,127,10],[128,3,128,10],[127,12,127,13],[127,1,127,2],[132,1,132,2],[135,1,135,2],[208,1,208,8],[232,1,232,8],[205,1,205,8],[192,1,192,8],[164,15,164,16],[164,17,164,18],[165,1,167,13],[172,1,172,13],[183,1,183,8],[185,15,185,18],[185,1,185,8],[182,1,182,5],[186,1,186,8],[175,18,175,19],[174,18,174,19],[166,17,167,18],[197,15,197,18],[230,15,230,22],[205,15,205,18],[175,20,175,21],[231,1,231,8],[230,1,230,8],[172,20,172,21],[178,20,178,21],[145,12,145,13],[143,12,143,13],[143,1,143,2],[144,12,144,13],[135,16,135,23],[135,12,135,13],[142,12,142,13],[139,12,139,13],[149,21,149,22],[139,1,139,2],[140,1,140,2],[140,12,140,13],[141,1,141,2],[141,12,141,13],[146,1,146,2],[139,16,139,18],[140,16,140,18],[141,16,141,18],[142,16,142,18],[143,16,143,18],[144,16,144,18],[145,16,145,18],[146,16,146,18],[137,3,137,10],[167,25,167,27],[153,18,155,23],[146,12,146,13],[156,22,157,23],[157,11,157,12],[153,17,155,17],[153,15,155,16],[149,17,149,18],[148,12,148,13],[158,22,160,23],[158,18,158,19],[156,16,157,16],[158,11,158,12],[149,12,149,13],[150,12,150,13],[149,19,149,20],[156,20,157,21],[156,17,157,17],[160,18,160,19],[146,19,146,23],[108,16,108,23],[97,16,97,23],[63,23,63,24],[65,15,65,20],[87,16,87,23],[98,16,98,23],[99,16,99,23],[88,16,88,23],[90,16,90,23],[89,16,89,23],[100,16,100,23],[105,16,105,23],[106,16,106,23],[46,23,46,24],[51,5,51,10],[47,2,47,4],[76,1,76,9],[82,10,85,10],[66,5,66,10],[74,4,74,8],[72,1,72,9],[81,1,82,9],[78,1,78,9],[69,1,69,5],[62,21,62,22],[64,21,64,22],[64,15,64,20],[75,1,75,3],[71,1,71,9],[77,1,77,3],[66,2,66,4],[65,21,65,22],[85,1,85,9],[52,23,52,24],[53,21,53,22],[53,23,53,24],[57,21,57,22],[247,19,247,22],[244,15,245,22],[241,15,241,22],[240,15,240,22],[243,15,243,22],[239,15,239,22],[191,15,191,18],[156,18,157,19],[161,20,161,21],[172,18,172,19],[179,20,179,21],[176,17,177,19],[173,20,173,21],[159,20,159,21],[178,18,178,19],[160,20,160,21],[237,15,238,22],[161,18,161,19],[159,18,159,19],[174,20,174,21],[233,15,233,22],[2,1,2,4],[2,15,2,17],[2,19,2,22],[3,1,4,8],[3,15,4,22],[7,1,7,6],[7,7,7,8],[7,15,7,20],[7,21,7,22],[5,1,5,8],[6,1,6,8],[5,9,6,14],[3,9,3,14],[4,9,4,14],[7,9,7,14],[8,21,8,22],[9,1,9,3],[9,4,9,6],[16,4,16,8],[16,18,16,22],[16,15,16,17],[12,19,12,20],[10,15,10,18],[11,21,11,22],[12,15,12,18],[11,1,11,3],[12,1,12,3],[10,19,10,22],[12,21,12,22],[13,15,13,18],[16,1,16,3],[15,1,15,3],[13,1,13,3],[12,7,12,8],[12,4,12,6],[9,15,9,18],[9,19,9,22],[15,15,15,17],[13,19,13,22],[19,15,23,22],[33,6,33,7],[42,1,42,10],[43,1,43,10],[38,1,38,10],[10,4,10,6],[10,7,10,8],[11,4,11,6],[11,7,11,8],[10,1,10,3],[13,4,13,8],[14,4,14,8],[32,1,32,2],[33,3,33,4],[30,6,30,8],[35,6,35,7],[39,1,39,10],[19,1,23,8],[27,15,27,22],[51,2,51,4],[59,21,59,22],[11,15,11,18],[35,3,35,4],[36,6,36,7],[32,3,32,4],[11,19,11,20],[15,4,15,8],[15,18,15,22],[29,3,29,4],[14,15,14,18],[14,19,14,22],[26,15,26,22],[14,1,14,3],[27,1,27,8],[29,6,29,8],[29,1,29,2],[32,6,32,8],[35,1,35,2],[30,1,30,2],[33,1,33,2],[30,3,30,4],[36,1,36,2],[36,3,36,4],[53,2,53,4],[53,5,53,10],[65,2,65,4],[65,5,65,10],[56,2,56,4],[62,5,62,10],[62,2,62,4],[55,2,55,4],[55,5,55,10],[59,2,59,4],[56,5,56,10],[60,5,60,10],[63,5,63,10],[64,5,64,10],[63,2,63,4],[61,2,61,4],[64,2,64,4],[57,2,57,4],[59,5,59,10],[60,2,60,4],[58,2,58,4],[45,1,45,5],[44,15,44,16],[45,15,45,19],[47,21,47,22],[48,2,48,4],[49,2,49,4],[49,5,49,10],[48,5,48,10],[50,2,50,4],[48,15,48,20],[44,1,44,5],[46,21,46,22],[46,5,46,10],[47,5,47,10],[46,2,46,4],[47,15,47,20],[49,15,49,20],[49,21,49,22],[48,21,48,22],[46,15,46,20],[50,5,50,10],[50,15,50,20],[50,21,50,22],[92,7,92,13],[127,16,127,23],[87,7,87,13],[138,16,138,18],[95,1,95,3],[96,1,96,3],[100,1,100,3],[101,1,101,3],[101,16,101,23],[102,1,102,3],[102,4,102,13],[102,16,102,23],[103,1,103,3],[103,4,103,13],[103,16,103,23],[104,1,104,3],[104,4,104,13],[104,16,104,23],[126,3,126,10],[112,4,112,13],[113,4,113,13],[101,4,101,13],[94,16,94,23],[107,16,107,23],[129,3,129,10],[131,1,131,2],[130,1,130,2],[114,4,114,13],[107,4,107,13],[108,4,108,13],[109,4,109,13],[110,4,110,13],[111,4,111,13],[126,1,126,2],[125,1,125,2],[125,3,125,10],[130,3,130,10],[131,3,131,10],[95,4,95,13],[96,4,96,13],[100,4,100,13],[98,1,98,3],[98,4,98,13],[99,1,99,3],[99,4,99,13],[88,1,88,3],[88,4,88,6],[88,7,88,13],[90,1,90,3],[90,4,90,6],[90,7,90,13],[89,1,89,3],[89,4,89,6],[89,7,89,13],[93,1,93,9],[94,1,94,3],[91,1,91,3],[91,4,91,6],[91,7,91,13],[92,1,92,3],[94,4,94,13],[92,4,92,6],[47,25,47,42],[126,16,126,23],[125,12,125,13],[125,16,125,23],[75,11,78,13],[123,11,123,13],[54,23,54,24],[53,15,53,20],[52,21,52,22],[52,15,52,20],[57,15,57,20],[64,23,64,24],[82,11,84,13],[126,12,126,13],[86,16,86,23],[62,15,62,20],[105,4,105,13],[106,4,106,13],[97,4,97,13],[52,2,52,4],[52,5,52,10],[54,2,54,4],[54,5,54,10],[84,1,84,5],[239,1,239,8],[144,1,144,2],[149,1,149,2],[145,1,145,2],[197,1,197,8],[187,1,187,8],[188,1,188,8],[199,1,199,8],[202,1,202,8],[194,1,194,8],[193,1,193,8],[191,1,191,8],[217,1,217,8],[218,1,227,8],[159,1,159,3],[201,1,201,8],[198,1,198,8],[233,1,233,8],[200,1,200,8],[211,1,211,8],[212,1,214,8],[216,1,216,5],[206,1,206,8],[207,1,207,8],[61,15,61,20],[56,21,56,22],[173,1,179,13],[128,12,128,13],[87,1,87,3],[86,1,86,3],[86,4,86,6],[87,4,87,6],[86,7,86,13],[124,1,124,4],[123,7,123,9],[142,1,142,2],[137,12,137,13],[106,1,106,3],[107,1,107,3],[108,1,108,3],[105,1,105,3],[97,1,97,3],[137,19,137,23],[136,12,136,13],[136,3,136,10],[129,1,129,2],[129,12,129,13],[80,1,80,9],[142,19,142,23],[143,19,143,23],[144,19,144,23],[8,9,8,14],[9,9,9,14],[66,23,66,24],[68,23,68,24],[65,23,65,24],[57,23,57,24],[59,15,59,20],[58,15,58,20],[58,21,58,22],[57,5,57,10],[63,15,63,20],[63,21,63,22],[58,5,58,10],[61,5,61,10],[59,23,59,24],[61,23,61,24],[60,21,60,22],[9,7,9,8],[8,15,8,20],[8,1,8,6],[8,7,8,8],[50,23,50,24],[51,23,51,24],[62,23,62,24],[66,15,66,20],[66,21,66,22],[95,16,95,23],[96,16,96,23],[91,16,91,23],[47,23,47,24],[51,21,51,22],[51,15,51,20],[54,15,54,20],[54,21,54,22],[55,15,55,20],[60,23,60,24],[48,23,48,24],[49,23,49,24],[56,23,56,24],[56,15,56,20],[55,21,55,22],[55,23,55,24],[58,23,58,24],[92,16,92,23],[61,21,61,22],[145,19,145,23],[138,12,138,13],[133,1,133,2],[132,12,132,13],[128,16,128,23],[133,12,133,13],[133,16,133,23],[132,16,132,23],[131,12,131,13],[130,16,130,23],[131,16,131,23],[130,12,130,13],[134,12,134,13],[128,1,128,2],[129,16,129,23],[132,3,132,10],[136,16,136,18],[137,16,137,18],[134,16,134,23],[136,19,136,23],[138,19,138,23],[139,19,139,23],[140,19,140,23],[141,19,141,23]]}
[]
[null,null,null,null,null,null,null,null,null,null,null,null,null,null,{"$f":"\"Avrop nr: \"&B15","v":"Avrop nr: "},null,null,null,null,null,null,null,{"$f":"\"Avrop nr: \"&B15","v":"Avrop nr: "}]
[null,"Avropsförfrågan",null,null,null,null,null,null,null,null,null,null,null,null,null,"Avropssvar",null,null,null,{"$f":"IF(LarmStatus,\"Minst ett av de obligatoriska kraven är inte ifyllda eller besvarade med Nej\",\"\")","v":"Minst ett av de obligatoriska kraven är inte ifyllda eller besvarade med Nej"},null,null,null,null,null,null,null,null,null,null,null,null,null,{"$f":"OR(AH4:AH893)","v":true}]
[null,"Instruktion till avropande organisation: \nSpara ned blanketten på din dator.\nGulmarkerade rutor fylls i av avropare innan blanketten skickas.\n\nBlanketten skickas med e-post till antagna leverantörer inom aktuellt avropsområde.\nSe vidare \"Vägledning vid avrop\".",null,null,null,null,null,null,null,"Ramavtalsområde",null,null,null,null,null,"Instruktion till leverantör:\nBlåmarkerade rutor fylls i av leverantören.\nLäs och kontrollera obligatoriska krav.\nReturnera blanketten med e-post till avropande organisation (oavsett Ja eller Nej).\nMer information finns under vissa rubriker"]
[null,null,null,null,null,null,null,null,null,"Säkerhetsteknik"]
[null,"Steg 1 - Administrativa uppgifter",null,null,null,null,null,null,null,"Avrop med förnyad konkurrensutsättning\nKammarkollegiets diarienr. "]
[null,"Uppgifter om avropande organisation",null,null,null,null,null,null,null,null,null,null,null,null,null,"Uppgifter om Ramavtalsleverantören"]
[null,"Myndighet/Organisation (namn)",null,null,null,null,null,"Organisationsnummer",null,"23.3-1953.20",null,null,null,null,null,"Ramavtalsleverantörens namn",null,null,null,null,null,"Organisationsnummer"]
[null,null,null,null,null,null,null,null,null,"Avropsblankett"]
[null,"Postadress",null,null,"Postnummer",null,null,"Ort",null,"Version 2.13 2023-06-29",null,null,null,null,null,"Kontaktperson",null,null,null,"E-post"]
[]
[null,"Avdelning, enhet etc",null,null,"Kontaktperson",null,null,"Telefon",null,null,null,null,null,null,null,"Postadress",null,null,null,"Postnummer",null,"Ort"]
[]
[null,"Referens/diarienr för avropet",null,null,"E-post",null,null,null,null,null,null,null,null,null,null,"Telefon",null,null,null,"Offertnummer el likn för detta avropssvar"]
[null,null,null,null,"     "]
[null,null,null,null,null,null,null,null,null,null,null,null,null,null,null,"Avropssvar lämnas Ja/Nej",null,null,"Om Nej, motivering"]
[null,null,null,null,"     ",null,null,null,null,null,null,null,null,null,null,null,null,null,null,null,null,null,null,null,null,null,null,null,null,null,null,null,null,{"$f":"IF(OR(P17=0,P17<>\"Ja\"),TRUE,FALSE)","v":true}]
[]
[null,"Förnyad kontroll av leverantörskrav (ESPD)",null,null,null,null,null,null,null,null,null,null,null,null,null,"Leverantörskrav (ESPD) - Ramavtalsleverantörens intygande"]
[null,"Av 15 kap. 1 samt 4 §§ LOU framgår att ramavtalsleverantören ska lämna en ny egenförsäkran samt att en ny kontroll av kvalificeringskrav och uteslutningsgrunder ska genomföras vid avrop genom förnyad konkurrensutsättning. Kammarkollegiet ansvarar för denna kontrollskyldighet genom att löpande genomföra leverantörsprövning under hela ramavtalsperioden. \nKontrollskyldigheten bör också hanteras så att ramavtalsleverantören i sitt avropssvar bekräftar att i ramavtalsupphandlingen lämnad egenförsäkran fortfarande är korrekt, samt att ingivna bevis fortfarande är aktuella. Avropande myndighet kan själv begära in ett eller flera bevis enligt punkten 2 till höger.",null,null,null,null,null,null,null,null,null,null,null,null,null,"Genom att lämna avropssvar, bekräftar ramavtalsleverantören följande:\n1.\tAtt i ramavtalsupphandlingen lämnad egenförsäkran fortfarande är korrekt.\n2.\tAtt i ramavtalsupphandlingen ingivna bevis, såsom Sanningsförsäkran avseende uteslutningsgrunder (gällande leverantören och ev. åberopade företag) fortfarande aktuella.\n3.\tAtt ramavtalsleverantören har säkerställt att ev. åberopade företag inte omfattas av någon uteslutningsgrund.\nMed \"åberopat företag\" avses specifikt en underleverantör som har åberopats i ramavtalsupphandlingen för att uppfylla krav på ekonomisk, teknisk och yrkesmässig kapacitet”."]
[]
[]
[]
[]
[]
[null,null,null,null,null,null,null,null,null,null,null,null,null,null,null,"Uppgift om underleverantörer (i förekommande fall)"]
[null,"Information om avropet, t ex syfte och omfattning",null,null,null,null,null,null,null,null,null,null,null,null,null,"Redogör för vilka underleverantör/er inkl. org. nr. som kommer att medverka till fullgörandet av kontraktet samt vilka delar underleverantörerna fullgör. \nMed Underleverantör avses en juridisk eller fysisk person som Ramavtalsleverantören anlitar för att fullgöra hela eller delar av det åtagande som följer av Ramavtalet och Kontrakt. \n"]
[]
[]
[null,"Sista dag för att ställa frågor",null,"Sista dag för \nsvar på frågor",null,null,"E-post för frågor (om annan än ovan)"]
[]
[]
[null,"Sista dag för avropssvar",null,"Avropssvarets giltighetstid",null,null,"Avtalsspärr efter tilldelningsbeslut"]
[null,null,null,null,null,null,"Avtalsspärr kommer att iakttas?"]
[]
[null,"Kontraktets giltighetstid (t.o.m. datum)",null,"Förlängningsoption\n(t.o.m. datum)",null,null,"Planerat startdatum för uppdraget"]
[]
[]
[null,"Ange anbudsområde"]
[null,"Brandskydd"]
[]
[]
[null,"Ange region"]
[null,"Ange region"]
[null,"Steg 2 - Specifikation av varor/tjänster",null,null,null,null,null,null,null,null,null,null,null,null,null,"Leverantörens svar"]
[null,null,null,null,null,null,null,null,""]
[null,"Vara/tjänst nr","Välj i lista\nOBS! Varje vara/tjänst kan väljas flera gånger.",null,null,"Specificera varor/tjänster i fritext eller hänvisa till bilaga. Ange bilagans nummer. Om specifikation görs i en bilaga anges \"Antal\" till 1 för hela beställningen. Vid flera bilagor, använd en rad per bilaga.\n\nSpecificera uppdragets omfattning, t.ex. start- och slutdatum",null,null,null,null,null,"Specifikation i bilaga?","Antal\n(blir alltid 1 om bilaga)","Enhet/\nbilaga",null,"Vid behov specificera varor/tjänster, annan information eller hänvisa till bilaga.",null,null,null,null,null,"Pris/enhet\n",null,"Pris totalt"]
[null,"01.","Välj vara/tjänst",null,null,null,null,null,null,null,null,null,null,null,null,null,null,null,null,null,null,null,null,{"$f":"IFERROR(IF(L48=\"TRUE\",V48,IF(N48=\"Totalpris\",V48,V48*M48)),\"\")","v":0}]
[null,"02.","Välj vara/tjänst",null,null,null,null,null,null,null,null,null,null,null,null,null,null,null,null,null,null,null,null,{"$f":"IFERROR(IF(L49=\"TRUE\",V49,IF(N49=\"Totalpris\",V49,V49*M49)),\"\")","v":0}]
[null,"03.","Välj vara/tjänst",null,null,null,null,null,null,null,null,null,null,null,null,null,null,null,null,null,null,null,null,0]
[null,"04.","Välj vara/tjänst",null,null,null,null,null,null,null,null,null,null,null,null,null,null,null,null,null,null,null,null,0]
[null,"05.","Välj vara/tjänst",null,null,null,null,null,null,null,null,null,null,null,null,null,null,null,null,null,null,null,null,0]
[null,"06.","Välj vara/tjänst",null,null,null,null,null,null,null,null,null,null,null,null,null,null,null,null,null,null,null,null,0]
[null,"07.","Välj vara/tjänst",null,null,null,null,null,null,null,null,null,null,null,null,null,null,null,null,null,null,null,null,0]
[null,"08.","Välj vara/tjänst",null,null,null,null,null,null,null,null,null,null,null,null,null,null,null,null,null,null,null,null,0]
[null,"09.","Välj vara/tjänst",null,null,null,null,null,null,null,null,null,null,null,null,null,null,null,null,null,null,null,null,0]
[null,"10.","Välj vara/tjänst",null,null,null,null,null,null,null,null,null,null,null,null,null,null,null,null,null,null,null,null,0]
[null,"11.","Välj vara/tjänst",null,null,null,null,null,null,null,null,null,null,null,null,null,null,null,null,null,null,null,null,0]
[null,"12.","Välj vara/tjänst",null,null,null,null,null,null,null,null,null,null,null,null,null,null,null,null,null,null,null,null,0]
[null,"13.","Välj vara/tjänst",null,null,null,null,null,null,null,null,null,null,null,null,null,null,null,null,null,null,null,null,0]
[null,"14.","Välj vara/tjänst",null,null,null,null,null,null,null,null,null,null,null,null,null,null,null,null,null,null,null,null,0]
[null,"15.","Välj vara/tjänst",null,null,null,null,null,null,null,null,null,null,null,null,null,null,null,null,null,null,null,null,0]
[null,"16.","Välj vara/tjänst",null,null,null,null,null,null,null,null,null,null,null,null,null,null,null,null,null,null,null,null,0]
[null,"17.","Välj vara/tjänst",null,null,null,null,null,null,null,null,null,null,null,null,null,null,null,null,null,null,null,null,0]
[null,"18.","Välj vara/tjänst",null,null,null,null,null,null,null,null,null,null,null,null,null,null,null,null,null,null,null,null,0]
[null,"19.","Välj vara/tjänst",null,null,null,null,null,null,null,null,null,null,null,null,null,null,null,null,null,null,null,null,0]
[null,"20.","Välj vara/tjänst",null,null,null,null,null,null,null,null,null,null,null,null,null,null,null,null,null,null,null,null,0]
[]
[null,null,null,null,null,null,null,null,null,null,null,null,null,null,null,null,null,null,null,null,null,null,"Totalt pris (utvärderas): ",{"$f":"SUM(X48:Y67)","v":0}]
[]
[null,"Steg 3 - Grund för tilldelning av kontrakt"]
[null,"I enlighet med ramavtalet sker tilldelning av kontrakt utifrån tilldelningsgrunden: Ekonomiskt mest fördelaktiga utifrån bästa förhållande mellan pris och kvalitet"]
[null,"Alt. 2. Ekonomiskt mest fördelaktiga utifrån bästa förhållande mellan pris och kvalitet",null,null,null,null,null,null,null,null,"(Tag bort detta fält och valmöjligheten, tilldelningsgrunden ska vara fast utifrån respektive ramavtal.)"]
[1]
[1]
[1,"Utvärderingsmodell",null,null,null,null,null,null,null,null,null,"Instruktion:\nObservera att de två föreslagna alternativen (utöver Lägsta pris) endast är exempel på vanligt förekommande utvärderings-modeller. Det är alltid den avropande organisationen som avgör om man vill använda sig av dem. Det går även att ange egen modell."]
[1,"Ange nedan utvärderingsmodell som kommer att tillämpas för att utse vinnande avropssvar. \n"]
[1]
[1,"Välj utvärdering….."]
[]
[null,"Förfarande  om två avropssvar har erhållit samma poängsumma/utvärderingspris"]
[null,"(plats för text utifrån aktuellt ramavtal)"]
[]
[]
[null,"Steg 4 - Kravspecifikation",null,null,null,null,null,null,null,null,null,null,null,null,null,"Kravuppfyllnad"]
[null,"Obligatoriska krav (\"ska-krav\") på leverantören"]
[null,"Krav på säkerhetsskyddsavtal",null,null,"Ange nivå för säkerhetsskyddsavtal",null,null,"Precisera krav i fritext eller hänvisa till bilaga",null,null,null,null,null,null,null,"Uppfylls kravet?\nJa/Nej","Beskrivning av hur leverantören uppfyller kravet eller referera till bilaga."]
[null,"Säkerhetsskyddsavtal (ange nivå), registerkontroll av aktuell personal",null,null,null,null,null,null,null,null,null,null,null,null,null,null,null,null,null,null,null,null,null,null,null,null,{"$f":"IF(AND(E88=\"\",H88=\"\"),TRUE,FALSE)","v":true},{"$f":"IF(AA88=FALSE,IF(P88<>\"Ja\",TRUE,FALSE),TRUE)","v":true},null,null,null,null,null,{"$f":"IF(AB88=AA88,FALSE,TRUE)","v":false}]
[null,"Krav på certfieringar (brandskydd)\nvid avrop av fasta släcksystem och översyn av brandlarm ",null,null,"Ange relevant certifiering",null,null,"Precisera krav i fritext eller hänvisa till bilaga",null,null,null,null,null,null,null,"Uppfylls kravet?\nJa/Nej","Beskrivning av hur leverantören uppfyller kravet eller referera till bilaga."]
[null,"Välj certifiering",null,null,null,null,null,null,null,null,null,null,null,null,null,null,null,null,null,null,null,null,null,null,null,null,{"$f":"IF(AND(E90=\"\",H90=\"\"),TRUE,FALSE)","v":true},{"$f":"IF(AA90=FALSE,IF(P90<>\"Ja\",TRUE,FALSE),TRUE)","v":true},null,null,null,null,null,{"$f":"IF(AB90=AA90,FALSE,TRUE)","v":false}]
[null,"Välj certifiering",null,null,null,null,null,null,null,null,null,null,null,null,null,null,null,null,null,null,null,null,null,null,null,null,true,{"$f":"IF(AA91=FALSE,IF(P91<>\"Ja\",TRUE,FALSE),TRUE)","v":true},null,null,null,null,null,false]
[null,"Välj certifiering",null,null,null,null,null,null,null,null,null,null,null,null,null,null,null,null,null,null,null,null,null,null,null,null,true,true,null,null,null,null,null,false]
[null,"Välj certifiering",null,null,null,null,null,null,null,null,null,null,null,null,null,null,null,null,null,null,null,null,null,null,null,null,true,true,null,null,null,null,null,false]
[null,"Obligatoriska krav på avropade produkter och tjänster enligt ovan",null,null,null,null,null,null,null,null,null,"a"]
[null,"Välj vara/tjänst (endast de som valts i steg 2 ovan är möjliga)\nOBS! Varje vara/tjänst kan väljas flera gånger.",null,null,"Precisera krav i fritext eller hänvisa till bilaga",null,null,null,null,null,null,null,null,null,null,"Uppfylls kravet?\nJa/Nej","Beskrivning av hur leverantören uppfyller kravet eller referera till bilaga."]
[null,"Välj vara/tjänst",null,null,null,null,null,null,null,null,null,null,null,null,null,null,null,null,null,null,null,null,null,null,null,null,{"$f":"IF(OR(LEFT(B96,4)=\"Välj\",B96=\"\"),TRUE,FALSE)","v":true},{"$f":"IF(AA96=FALSE,IF(P96<>\"Ja\",TRUE,FALSE),TRUE)","v":true},null,null,null,null,null,{"$f":"IF(AB96=AA96,FALSE,TRUE)","v":false}]
[null,"Välj vara/tjänst",null,null,null,null,null,null,null,null,null,null,null,null,null,null,null,null,null,null,null,null,null,null,null,null,{"$f":"IF(OR(LEFT(B97,4)=\"Välj\",B97=\"\"),TRUE,FALSE)","v":true},{"$f":"IF(AA97=FALSE,IF(P97<>\"Ja\",TRUE,FALSE),TRUE)","v":true},null,null,null,null,null,{"$f":"IF(AB97=AA97,FALSE,TRUE)","v":false}]
[null,"Välj vara/tjänst",null,null,null,null,null,null,null,null,null,null,null,null,null,null,null,null,null,null,null,null,null,null,null,null,true,true,null,null,null,null,null,false]
[null,"Välj vara/tjänst",null,null,null,null,null,null,null,null,null,null,null,null,null,null,null,null,null,null,null,null,null,null,null,null,true,true,null,null,null,null,null,false]
[null,"Välj vara/tjänst",null,null,null,null,null,null,null,null,null,null,null,null,null,null,null,null,null,null,null,null,null,null,null,null,true,true,null,null,null,null,null,false]
[null,"Välj vara/tjänst",null,null,null,null,null,null,null,null,null,null,null,null,null,null,null,null,null,null,null,null,null,null,null,null,true,true,null,null,null,null,null,false]
[null,"Välj vara/tjänst",null,null,null,null,null,null,null,null,null,null,null,null,null,null,null,null,null,null,null,null,null,null,null,null,true,true,null,null,null,null,null,false]
[null,"Välj vara/tjänst",null,null,null,null,null,null,null,null,null,null,null,null,null,null,null,null,null,null,null,null,null,null,null,null,true,true,null,null,null,null,null,false]
[null,"Välj vara/tjänst",null,null,null,null,null,null,null,null,null,null,null,null,null,null,null,null,null,null,null,null,null,null,null,null,true,true,null,null,null,null,null,false]
[null,"Välj vara/tjänst",null,null,null,null,null,null,null,null,null,null,null,null,null,null,null,null,null,null,null,null,null,null,null,null,true,true,null,null,null,null,null,false]
[null,"Välj vara/tjänst",null,null,null,null,null,null,null,null,null,null,null,null,null,null,null,null,null,null,null,null,null,null,null,null,true,true,null,null,null,null,null,false]
[null,"Välj vara/tjänst",null,null,null,null,null,null,null,null,null,null,null,null,null,null,null,null,null,null,null,null,null,null,null,null,true,true,null,null,null,null,null,false]
[null,"Välj vara/tjänst",null,null,null,null,null,null,null,null,null,null,null,null,null,null,null,null,null,null,null,null,null,null,null,null,true,true,null,null,null,null,null,false]
[null,"Välj vara/tjänst",null,null,null,null,null,null,null,null,null,null,null,null,null,null,null,null,null,null,null,null,null,null,null,null,true,true,null,null,null,null,null,false]
[null,"Välj vara/tjänst",null,null,null,null,null,null,null,null,null,null,null,null,null,null,null,null,null,null,null,null,null,null,null,null,true,true,null,null,null,null,null,false]
[null,"Välj vara/tjänst",null,null,null,null,null,null,null,null,null,null,null,null,null,null,null,null,null,null,null,null,null,null,null,null,true,true,null,null,null,null,null,false]
[null,"Välj vara/tjänst",null,null,null,null,null,null,null,null,null,null,null,null,null,null,null,null,null,null,null,null,null,null,null,null,true,true,null,null,null,null,null,false]
[null,"Välj vara/tjänst",null,null,null,null,null,null,null,null,null,null,null,null,null,null,null,null,null,null,null,null,null,null,null,null,true,true,null,null,null,null,null,false]
[null,"Välj vara/tjänst",null,null,null,null,null,null,null,null,null,null,null,null,null,null,null,null,null,null,null,null,null,null,null,null,true,true,null,null,null,null,null,false]
[null,"Välj vara/tjänst",null,null,null,null,null,null,null,null,null,null,null,null,null,null,null,null,null,null,null,null,null,null,null,null,true,true,null,null,null,null,null,false]
[]
[]
[]
[]
[]
[]
[]
[]
[]
[null,"Tilldelningskriterier (\"bör-krav\")"]
[null,"Välj vara/tjänst (endast de som valts i steg 2 ovan är möjliga)\nOBS! Varje vara/tjänst kan väljas flera gånger.",null,"Precisera krav i fritext eller hänvisa till bilaga\nOBS! Endast krav som kan besvaras med Ja eller Nej av leverantören\n",null,null,null,null,null,null,null,{"$f":"IF(TillDelVal=1,\"\",\"Ange poäng-värde\n\")","v":"Ange poäng-värde\n"},{"$f":"IF(TillDelVal=1,\"\",\"Ange prisavdrag från totalpriset (kr)\n\")","v":"Ange prisavdrag från totalpriset (kr)\n"},null,null,"Uppfyller kravet?","Beskrivning av hur leverantören uppfyller kravet eller referera till bilaga"]
[null,"Välj vara/tjänst",null,null,null,null,null,null,null,null,null,null,null,null,null,null,null,null,null,null,null,null,null,null,null,null,{"$f":"IF(OR(LEFT(B127,4)=\"Välj\",B127=\"\"),TRUE,FALSE)","v":true},{"$f":"IF(AA127=FALSE,IF(P127<>\"Ja\",TRUE,FALSE),TRUE)","v":true},null,null,null,null,null,{"$f":"IF(AB127=AA127,FALSE,TRUE)","v":false}]
[null,"Välj vara/tjänst",null,null,null,null,null,null,null,null,null,null,null,null,null,null,null,null,null,null,null,null,null,null,null,null,true,true,null,null,null,null,null,false]
[null,"Välj vara/tjänst",null,null,null,null,null,null,null,null,null,null,null,null,null,null,null,null,null,null,null,null,null,null,null,null,true,true,null,null,null,null,null,false]
[null,"Välj vara/tjänst",null,null,null,null,null,null,null,null,null,null,null,null,null,null,null,null,null,null,null,null,null,null,null,null,true,true,null,null,null,null,null,false]
[null,"Välj vara/tjänst",null,null,null,null,null,null,null,null,null,null,null,null,null,null,null,null,null,null,null,null,null,null,null,null,true,true,null,null,null,null,null,false]
[null,"Välj vara/tjänst",null,null,null,null,null,null,null,null,null,null,null,null,null,null,null,null,null,null,null,null,null,null,null,null,true,true,null,null,null,null,null,false]
[null,"Välj vara/tjänst",null,null,null,null,null,null,null,null,null,null,null,null,null,null,null,null,null,null,null,null,null,null,null,null,true,true,null,null,null,null,null,false]
[null,"Välj vara/tjänst",null,null,null,null,null,null,null,null,null,null,null,null,null,null,null,null,null,null,null,null,null,null,null,null,true,true,null,null,null,null,null,false]
[null,"Välj vara/tjänst",null,null,null,null,null,null,null,null,null,null,null,null,null,null,null,null,null,null,null,null,null,null,null,null,true,true,null,null,null,null,null,false]
[null,"Välj vara/tjänst",null,null,null,null,null,null,null,null,null,null,null,null,null,null,null,null,null,null,null,null,null,null,null,null,true,true,null,null,null,null,null,false]
[null,"Välj tjänst (endast de som valts i steg 2 ovan är möjliga)\nOBS! Varje tjänst kan väljas flera gånger.",null,"Precisera krav i fritext eller hänvisa till bilaga\nEndast krav som utvärderas efter att avropssvar inkommit",null,null,null,"Precisera krav i fritext eller hänvisa till bilaga\nOBS! Endast krav som som utvärderas efter att avropssvar inkommit\n\n\n",null,null,null,{"$f":"IF(TillDelVal=1,\"\",\"Ange max poäng-värde\n\")","v":"Ange max poäng-värde\n"},{"$f":"IF(TillDelVal=1,\"\",\"Ange max prisavdrag från totalpriset (kr)\n\")","v":"Ange max prisavdrag från totalpriset (kr)\n"},null,null,"Ange faktiskt utfall,\npoängväde/prisavdrag efter utvärdering","Avropande organisation beskriver hur leverantören uppfyller krav för att erhålla angivet poängvärde eller prisavdrag.\n",null,null,"Leverantörens svar och beskrivning av hur kravet uppfylls (eller referera till bilaga)"]
[null,"Välj vara/tjänst",null,null,null,null,null,null,null,null,null,null,null,null,null,null,null,null,null,null,null,null,null,null,null,null,{"$f":"IF(OR(LEFT(B138,4)=\"Välj\",B138=\"\"),TRUE,FALSE)","v":true},{"$f":"IF(AA138=FALSE,IF(P138=\"\",TRUE,FALSE),TRUE)","v":true},null,null,null,null,null,{"$f":"IF(AB138=AA138,FALSE,TRUE)","v":false}]
[null,"Välj vara/tjänst",null,null,null,null,null,null,null,null,null,null,null,null,null,null,null,null,null,null,null,null,null,null,null,null,true,{"$f":"IF(AA139=FALSE,IF(P139=\"\",TRUE,FALSE),TRUE)","v":true},null,null,null,null,null,false]
[null,"Välj vara/tjänst",null,null,null,null,null,null,null,null,null,null,null,null,null,null,null,null,null,null,null,null,null,null,null,null,true,true,null,null,null,null,null,false]
[null,"Välj vara/tjänst",null,null,null,null,null,null,null,null,null,null,null,null,null,null,null,null,null,null,null,null,null,null,null,null,true,true,null,null,null,null,null,false]
[null,"Välj vara/tjänst",null,null,null,null,null,null,null,null,null,null,null,null,null,null,null,null,null,null,null,null,null,null,null,null,true,true,null,null,null,null,null,false]
[null,"Välj vara/tjänst",null,null,null,null,null,null,null,null,null,null,null,null,null,null,null,null,null,null,null,null,null,null,null,null,true,true,null,null,null,null,null,false]
[null,"Välj vara/tjänst",null,null,null,null,null,null,null,null,null,null,null,null,null,null,null,null,null,null,null,null,null,null,null,null,true,true,null,null,null,null,null,false]
[null,"Välj vara/tjänst",null,null,null,null,null,null,null,null,null,null,null,null,null,null,null,null,null,null,null,null,null,null,null,null,true,true,null,null,null,null,null,false]
[null,"Välj vara/tjänst",null,null,null,null,null,null,null,null,null,null,null,null,null,null,null,null,null,null,null,null,null,null,null,null,true,true,null,null,null,null,null,false]
[null,"Välj vara/tjänst",null,null,null,null,null,null,null,null,null,null,null,null,null,null,null,null,null,null,null,null,null,null,null,null,true,true,null,null,null,null,null,false]
[1]
[1,null,null,null,null,null,null,null,null,null,null,{"$f":"IF(UtvarderingsVal=\"Alt3\",\"\",\"Max poäng för uppfyllda bör-krav\")","v":"Max poäng för uppfyllda bör-krav"},{"$f":"IF(UtvarderingsVal=\"Alt2\",\"\",\"Max prisavdrag för uppfyllda bör-krav\")","v":"Max prisavdrag för uppfyllda bör-krav"}]
[1,null,null,null,null,null,null,null,null,null,null,{"$f":"IF(UtvarderingsVal=\"Alt3\",\"\",SUM(L127:L147))","v":0},{"$f":"IF(UtvarderingsVal=\"Alt2\",\"\",SUM(M127:N147))","v":0},null,null,{"$f":"IF(UtvarderingsVal=\"Alt3\",\"\",\"Total erhållen poängsumma:\")","v":"Total erhållen poängsumma:"},{"$f":"IFERROR(IF(UtvarderingsVal=\"Alt3\",\"\",SUMIF(P127:P136,\"Ja\",L127:L136))+SUM(P138:P147),\"\")","v":0},null,null,{"$f":"IF(UtvarderingsVal=\"Alt2\",\"\",\"Totalt erhållet prisavdrag:\")","v":"Totalt erhållet prisavdrag:"},null,{"$f":"IFERROR(IF(UtvarderingsVal=\"Alt2\",\"\",SUMIF(P127:P136,\"Ja\",M127:N136))+SUM(P138:P147),\"\")","v":0}]
[]
[]
[]
["Ut1","Alt. 2. Summan av viktade poäng för pris och uppfyllda bör-krav, högsta slutsumma vinner.",null,null,null,null,null,null,null,null,null,null,null,null,null,"Sammanställning för detta avropssvar",null,"Fyll i det gula fältet efter att samtliga avropssvar inkommit!","När det gula fältet är ifyllt sker en automatisk poängberäkning. Lägst inkomna pris divideras med det aktuella avropssvarets pris, multipliceras med 100 och därefter med angiven viktning. Poängsumman för uppfyllda bör-krav divideras med max poäng för uppfyllda bör-krav, multipliceras med 100 och därefter med angiven viktning. En slutlig poängsumma för detta avropssvar kommer att framgå av fältet längst ned. Denna slutliga poängsumma ska jämföras med övriga inkomna avropssvar och ligger till grund för tilldelningsbeslutet."]
["Ut1","Priset jämförs mellan avropssvaren. Poäng för uppfyllda bör-krav jämförs med möjlig maxpoäng. "]
["Ut1","Tilldelningskriterier"]
["Ut1","Ange kriterievikt för pris respektive bör-krav i tabellen nedan",null,null,null,null,null,null,null,"Viktning %",null,null,null,null,null,null,"Viktning","Lägsta inkomna totalpris","Erhållen poäng för totalpris",null,"Viktade poäng per kriterium",null,"Slutlig poängsumma för detta avropssvar\n(utvärderas)"]
["Ut1","Pris",null,null,null,null,null,null,"Utvärdering av det totala sammanräknade priset: ",1,null,null,null,null,null,"Totalpris"]
["Ut1","Utvärderingskrav \n(bör-krav)",null,null,null,null,null,null,"Utvärdering av ställda bör-krav på avropade tjänster: ",0,null,null,null,null,null,{"$f":"X69","v":0},{"$f":"J158","v":1},null,{"$f":"IFERROR(R159/P159*100,0)","v":0},null,{"$f":"IFERROR(S159*Q159,\"\")","v":0},null,{"$f":"IFERROR(SUM(U159+U161),\"\")","v":""}]
["Ut1","Summa kriterievikt:",null,null,null,null,null,null,"(ska alltid summera till 100 %)",{"$f":"J159+J158","v":1},null,null,null,null,null,"Poängsumma för uppfyllda bör-krav"]
["Ut1",null,null,null,null,null,null,null,null,null,null,null,null,null,null,{"$f":"Q150","v":0},{"$f":"J159","v":0},null,null,null,{"$f":"IFERROR(((P161/L150)*100)*Q161,\"\")","v":""}]
["Ut1"]
["Ut1"]
[]
["Ut2","Alt. 3. Prisavdrag för uppfyllda bör-krav, lägsta utvärderingskostnad vinner. ",null,null,null,null,null,null,null,null,null,null,null,null,null,"Prisavdrag för uppfyllda bör-krav. ",null,"Summa utvärderingskostnad för detta avropssvar"]
["Ut2","Det erhållna prisavdraget för uppfyllda utvärderingskrav (bör-krav) dras ifrån det totala priset för avropade tjänster. Resultatet blir en utvärderingskostnad som ligger till grund för tilldelningsbeslutet.",null,null,null,null,null,null,null,null,null,null,null,null,null,{"$f":"V150","v":0},null,{"$f":"X69-P166","v":0}]
["Ut2",null,null,null,null,null,null,null,null,null,null,null,null,null,null,null,null,"OBS! Ej detsamma som kontraktssumma"]
["Ut2"]
["Ut2"]
[]
["Ut3","Alt. 4. Annan utvärderingsmodell (än de ovan föreslagna)"]
["Ut3"]
["Ut3","Avropande organisations beskrivning av den utvärderingsmodell som kommer att tillämpas (eller hänvisning till bilaga)"]
["Ut3"]
["Ut3"]
["Ut3"]
["Ut3"]
["Ut3"]
["Ut3"]
["Ut3"]
[]
[]
[null,"Steg 5 - Övriga kontraktsvillkor"]
[null,"Ramavtalets allmänna villkor utgör alltid en del av kontraktet."]
[null,"Leveranstid"]
[null,"Ange ev leveranstid/er för varor/tjänster"]
[]
[]
[]
[]
[null,"Leveransadress (om annan än ovan)"]
[null,"Ange ev adress för uppdraget/uppdragen"]
[]
[]
[]
[]
[null,"Faktureringsuppgifter "]
[null,"Ange fakturaadress, fakturareferens, adress för e-faktura"]
[]
[]
[]
[]
[]
[]
[null,"Leveransvillkor (framgår av ramavtalets allmänna villkor)"]
[null,"Ev. precisering av leveransvillkor"]
[]
[]
[]
[]
[null,"Kompletterande avtalsdokument"]
[null,"Ange standardavtal, för säkerhetssystem: AB 04 alt. ABT 06, för konsulttjänster: ABK 09. \nDärutöver t.ex. säkerhetsskyddsavtal, personuppgiftsbiträdesavtal, sekretessavtal, servicenivåavtal. (alternativt enl separat bilaga). \nObservera att det måste framgå av ramavtalet att krav kan ställas på sådana avtal."]
[]
[]
[]
[]
[null,"Övrig information"]
[null,"Ange övriga specifika förutsättningar (tex ev budgetrestriktioner), förhållanden eller önskemål som kan vara viktiga för leverantören och som inte framgår på annan plats i dokumentet."]
[]
[]
[]
[]
[]
[]
[]
[]
[]
[]
[]
[null,"Bilagor från avropande organisation (kontraktshandlingar framgår av flik 3)",null,null,null,null,null,null,null,null,null,null,null,null,null,"Bilagor från leverantören"]
[null,"Specificera ev. bilagor som medföljer denna avropsförfrågan",null,null,null,null,null,null,null,null,null,null,null,null,null,"Specificera ev. bilagor som medföljer detta avropssvar"]
[]
[]
[]
[]
[]
[]
[null,null,null,null,null,null,null,null,null,null,null,null,null,null,null,"Leverantören har lämnat begärda prisuppgifter som gäller för offererade varor och tjänster enligt ställda krav samt accepterar i övrigt kraven i avropsförfrågan och är införstådd med att samtliga lämnade uppgifter i avropssvaret är bindande\n"]
[]
[null,"OBS! Spara inte blanketten i PDF-format. Då kan inte leverantörerna fylla i den. Lås blanketten med \"låsknappen\" nedan innan ni skickar blanketten till leverantörerna. OBS, lösenordet måste innehålla minst en bokstav!",null,null,null,null,null,null,null,null,null,null,null,null,null,{"$f":"\"Leverantören intygar att avropssvaret är giltigt minst den tid som avropande organisation angett ovan. \"&CHAR(10)&\"(\"&TEXT(D34,\"ÅÅÅÅ-MM-DD\")&\")\"","v":"Leverantören intygar att avropssvaret är giltigt minst den tid som avropande organisation angett ovan. \n(1900-01-00)"}]
[null,null,null,null,null,null,null,null,null,null,null,null,null,null,null,"Ort, datum"]
[null,null,null,null,null,null,null,null,null,null,null,null,null,null,null,null,null,null,null,null,null,null,null,null,null,null,null,null,null,null,null,null,null,{"$f":"IF(P242=0,TRUE,FALSE)","v":true}]
[]
[null,null,null,null,null,null,null,null,null,null,null,null,null,null,null,"Namn, befattning (behörig företrädare för leverantören)"]
[]
[null,null,null,null,null,null,null,null,null,null,null,null,null,null,null,null,null,null,null,null,null,null,null,null,null,null,null,null,null,null,null,null,null,{"$f":"IF(P245=0,TRUE,FALSE)","v":true}]
[]
[null,null,null,null,null,null,null,null,null,null,null,null,null,null,null,null,null,null,null,{"$f":"IF(LarmStatus,\"Minst ett av de obligatoriska kraven är inte ifyllda eller besvarde med Nej\",\"\")","v":"Minst ett av de obligatoriska kraven är inte ifyllda eller besvarde med Nej"}]

{"sheet":"2 Avtalstecknande","index":1,"n_rows":35,"n_cols":4,"rows_kept":35,"cut":false,"hidden":false,"merged":[[39,1,39,3],[20,1,20,3],[35,1,35,3],[5,1,5,3],[36,1,36,3],[37,1,37,3],[38,1,38,3],[7,1,7,3],[11,1,11,3],[16,1,16,3],[17,1,17,3]]}
[null,null,null,{"$f":"\"Avrop nr: \"&'1 Specifikation'!B15","v":"Avrop nr: "}]
[]
[]
[]
[null,"Kontrakt"]
[null,{"$f":"\"Detta kontrakt reglerar avrop från ramavtalsområde \"&'1 Specifikation'!J5&\", \"&'1 Specifikation'!J8","v":"Detta kontrakt reglerar avrop från ramavtalsområde Säkerhetsteknik, 23.3-1953.20"}]
[null,"Kontraktets omfattning"]
[null,"Leveransens omfattning och villkor framgår av Kontraktet med tillhörande bilagor samt Ramavtalet. Om handlingarna innehåller motstridiga uppgifter ska handlingarna gälla i nedan nämnd ordning om inte omständigheterna uppenbarligen föranleder annat."]
[null,"1. Säkerhetsskyddsavtal"]
[null,"2. Personuppgiftsbiträdesavtal"]
[null,"3. Skriftliga ändringar och tillägg till Kontrakt"]
[null,"4. Kontrakt med bilagor, inkl. Allmänna villkor samt AB/ABT/ABK"]
[null,"5. Eventuellt kompletterande Avropsförfrågan"]
[null,"6. Avropsförfrågan med bilagor "]
[null,"7. Eventuella tillåtna kompletteringar av Avropssvar"]
[null,"8. Avropssvar med bilagor"]
[]
[null,"Innehåller leverantörens avropssvar uppgifter som inte efterfrågats i avropsblanketten är dessa uppgifter giltiga endast om en skriftlig överenskommelse träffas särskilt angående detta. Hänvisning till leverantörens egna allmänna villkor eller motsvarande är endast giltiga om en särskild överenskommelse avseende detta tecknas."]
[]
[null,"Underskrift"]
[null,"Underskriften avser ett kontraktstecknande. Efter undertecknande av bägge parter utgör denna blankett tillsammans med ramavtalets villkor enligt ovan ett kontrakt mellan parterna.\n\nDetta kontrakt har upprättats i två exemplar varav parterna tagit var sitt."]
[]
[null,"Avropande organisation",null,"Leverantör"]
[null,{"$f":"'1 Specifikation'!B9","v":0},null,{"$f":"'1 Specifikation'!P9","v":0}]
[null,"Org.nr.",null,"Org.nr."]
[null,{"$f":"'1 Specifikation'!H9","v":0},null,{"$f":"'1 Specifikation'!V9","v":0}]
[]
[null,"Ort, datum",null,"Ort, datum"]
[]
[]
[null,"Namn, befattning \n(behörig företrädare för avropande organisation)",null,"Namn, befattning \n(behörig företrädare för leverantören)"]
[]
[]
[]
[null,"Eventuella bilagor till kontraktet"]

{"sheet":"Admin","index":2,"n_rows":166,"n_cols":29,"rows_kept":166,"cut":false,"hidden":true,"merged":[]}
[null,null,null,null,null,null,null,null,null,"ResVarTja"]
[null,null,null,"Delområde 1","Delområde 2","Delområde 3","Delområde 4","Delområde 5","Delområde 6",{"$f":"USRDelområde","v":"Ange region"}]
[null,null,"TblDelområde","Välj vara/tjänst","Välj vara/tjänst","Välj vara/tjänst","Välj vara/tjänst","Välj vara/tjänst","Välj vara/tjänst",{"$f":"IFERROR(IF(INDEX(D3:I3,MATCH(J$2,D$2:I$2,0))=0,\"\",INDEX(D3:I3,MATCH(J$2,D$2:I$2,0))),\"\")","v":""}]
[null,null,"Välj delområde","Delområde 1/Vara/Tjanst 1","Delområde 2/Vara/Tjanst 1","Delområde 3/Vara/Tjanst 1","Delområde 4/Vara/Tjanst 1","Delområde 5/Vara/Tjanst 1","Delområde 6/Vara/Tjanst 1",{"$f":"IFERROR(IF(INDEX(D4:I4,MATCH(J$2,D$2:I$2,0))=0,\"\",INDEX(D4:I4,MATCH(J$2,D$2:I$2,0))),\"\")","v":""}]
[null,null,"Delområde 1","Delområde 1/Vara/Tjanst 2","Delområde 2/Vara/Tjanst 2","Delområde 3/Vara/Tjanst 2","Delområde 4/Vara/Tjanst 2","Delområde 5/Vara/Tjanst 2","Delområde 6/Vara/Tjanst 2",{"$f":"IFERROR(IF(INDEX(D5:I5,MATCH(J$2,D$2:I$2,0))=0,\"\",INDEX(D5:I5,MATCH(J$2,D$2:I$2,0))),\"\")","v":""}]
[null,null,"Delområde 2","Delområde 1/Vara/Tjanst 3","Delområde 2/Vara/Tjanst 3","Delområde 3/Vara/Tjanst 3","Delområde 4/Vara/Tjanst 3","Delområde 5/Vara/Tjanst 3","Delområde 6/Vara/Tjanst 3",""]
[null,null,"Delområde 3","Delområde 1/Vara/Tjanst 4","Delområde 2/Vara/Tjanst 4","Delområde 3/Vara/Tjanst 4","Delområde 4/Vara/Tjanst 4","Delområde 5/Vara/Tjanst 4","Delområde 6/Vara/Tjanst 4",""]
[null,null,"Delområde 4","Delområde 1/Vara/Tjanst 5","Delområde 2/Vara/Tjanst 5","Delområde 3/Vara/Tjanst 5","Delområde 4/Vara/Tjanst 5","Delområde 5/Vara/Tjanst 5","Delområde 6/Vara/Tjanst 5",""]
[null,null,"Delområde 5","Delområde 1/Vara/Tjanst 6","Delområde 2/Vara/Tjanst 6","Delområde 3/Vara/Tjanst 6","Delområde 4/Vara/Tjanst 6","Delområde 5/Vara/Tjanst 6","Delområde 6/Vara/Tjanst 6",""]
[null,null,"Delområde 6","Delområde 1/Vara/Tjanst 7","Delområde 2/Vara/Tjanst 7","Delområde 3/Vara/Tjanst 7","Delområde 4/Vara/Tjanst 7","Delområde 5/Vara/Tjanst 7","Delområde 6/Vara/Tjanst 7",""]
[null,null,null,"Delområde 1/Vara/Tjanst 8","Delområde 2/Vara/Tjanst 8","Delområde 3/Vara/Tjanst 8","Delområde 4/Vara/Tjanst 8","Delområde 5/Vara/Tjanst 8","Delområde 6/Vara/Tjanst 8",""]
[null,null,null,"Delområde 1/Vara/Tjanst 9","Delområde 2/Vara/Tjanst 9","Delområde 3/Vara/Tjanst 9","Delområde 4/Vara/Tjanst 9","Delområde 5/Vara/Tjanst 9","Delområde 6/Vara/Tjanst 9",""]
[null,null,null,"Delområde 1/Vara/Tjanst 10","Delområde 2/Vara/Tjanst 10","Delområde 3/Vara/Tjanst 10","Delområde 4/Vara/Tjanst 10","Delområde 5/Vara/Tjanst 10","Delområde 6/Vara/Tjanst 10",""]
[null,null,null,"Delområde 1/Vara/Tjanst 11","Delområde 2/Vara/Tjanst 11","Delområde 3/Vara/Tjanst 11","Delområde 4/Vara/Tjanst 11","Delområde 5/Vara/Tjanst 11","Delområde 6/Vara/Tjanst 11",""]
[null,null,"TblAnbudsområde","Delområde 1/Vara/Tjanst 12","Delområde 2/Vara/Tjanst 12","Delområde 3/Vara/Tjanst 12","Delområde 4/Vara/Tjanst 12","Delområde 5/Vara/Tjanst 12","Delområde 6/Vara/Tjanst 12",""]
[null,null,"Brandskydd","Delområde 1/Vara/Tjanst 13","Delområde 2/Vara/Tjanst 13","Delområde 3/Vara/Tjanst 13","Delområde 4/Vara/Tjanst 13","Delområde 5/Vara/Tjanst 13","Delområde 6/Vara/Tjanst 13",""]
[null,null,null,"Delområde 1/Vara/Tjanst 14","Delområde 2/Vara/Tjanst 14","Delområde 3/Vara/Tjanst 14","Delområde 4/Vara/Tjanst 14","Delområde 5/Vara/Tjanst 14","Delområde 6/Vara/Tjanst 14",""]
[null,null,null,"Delområde 1/Vara/Tjanst 15","Delområde 2/Vara/Tjanst 15","Delområde 3/Vara/Tjanst 15","Delområde 4/Vara/Tjanst 15","Delområde 5/Vara/Tjanst 15","Delområde 6/Vara/Tjanst 15",""]
[null,null,null,"Delområde 1/Vara/Tjanst 16","Delområde 2/Vara/Tjanst 16","Delområde 3/Vara/Tjanst 16","Delområde 4/Vara/Tjanst 16","Delområde 5/Vara/Tjanst 16","Delområde 6/Vara/Tjanst 16",""]
[null,null,null,"Delområde 1/Vara/Tjanst 17","Delområde 2/Vara/Tjanst 17","Delområde 3/Vara/Tjanst 17","Delområde 4/Vara/Tjanst 17","Delområde 5/Vara/Tjanst 17","Delområde 6/Vara/Tjanst 17",""]
[null,null,null,"Delområde 1/Vara/Tjanst 18","Delområde 2/Vara/Tjanst 18","Delområde 3/Vara/Tjanst 18","Delområde 4/Vara/Tjanst 18","Delområde 5/Vara/Tjanst 18","Delområde 6/Vara/Tjanst 18",""]
[null,null,null,"Delområde 1/Vara/Tjanst 19","Delområde 2/Vara/Tjanst 19","Delområde 3/Vara/Tjanst 19","Delområde 4/Vara/Tjanst 19","Delområde 5/Vara/Tjanst 19","Delområde 6/Vara/Tjanst 19",""]
[null,null,null,"Delområde 1/Vara/Tjanst 20","Delområde 2/Vara/Tjanst 20","Delområde 3/Vara/Tjanst 20","Delområde 4/Vara/Tjanst 20","Delområde 5/Vara/Tjanst 20","Delområde 6/Vara/Tjanst 20",""]
[null,null,null,"Delområde 1/Vara/Tjanst 21","Delområde 2/Vara/Tjanst 21","Delområde 3/Vara/Tjanst 21","Delområde 4/Vara/Tjanst 21","Delområde 5/Vara/Tjanst 21","Delområde 6/Vara/Tjanst 21",""]
[]
[]
[null,null,null,"Vara/Tjanster",null,null,null,null,null,"ResOpt"]
[null,null,null,"Välj Vara/Tjanst",{"$f":"D28","v":"Välj Vara/Tjanst"},{"$f":"E28","v":"Välj Vara/Tjanst"},{"$f":"F28","v":"Välj Vara/Tjanst"},{"$f":"G28","v":"Välj Vara/Tjanst"},{"$f":"H28","v":"Välj Vara/Tjanst"},{"$f":"INDEX(D28:I28,MATCH(J$2,D$2:I$2,0))","v":{"$error":"#N/A"}}]
[null,null,null,"Delområde 1/Vara/Tjanst 1","Delområde 2/Vara/Tjanst 1","Delområde 3/Vara/Tjanst 1","Delområde 4/Vara/Tjanst 1","Delområde 5/Vara/Tjanst 1","Delområde 6/Vara/Tjanst 1",{"$f":"IFERROR(IF(INDEX(D29:I29,MATCH(J$2,D$2:I$2,0))=0,\"\",INDEX(D29:I29,MATCH(J$2,D$2:I$2,0))),\"\")","v":""}]
[null,null,null,"Delområde 1/Vara/Tjanst 2","Delområde 2/Vara/Tjanst 2","Delområde 3/Vara/Tjanst 2","Delområde 4/Vara/Tjanst 2","Delområde 5/Vara/Tjanst 2","Delområde 6/Vara/Tjanst 2",{"$f":"IFERROR(IF(INDEX(D30:I30,MATCH(J$2,D$2:I$2,0))=0,\"\",INDEX(D30:I30,MATCH(J$2,D$2:I$2,0))),\"\")","v":""}]
[null,null,null,"Delområde 1/Vara/Tjanst 3","Delområde 2/Vara/Tjanst 3","Delområde 3/Vara/Tjanst 3","Delområde 4/Vara/Tjanst 3","Delområde 5/Vara/Tjanst 3","Delområde 6/Vara/Tjanst 3",""]
[null,null,null,"Delområde 1/Vara/Tjanst 4","Delområde 2/Vara/Tjanst 4","Delområde 3/Vara/Tjanst 4","Delområde 4/Vara/Tjanst 4","Delområde 5/Vara/Tjanst 4","Delområde 6/Vara/Tjanst 4",""]
[null,null,null,"Delområde 1/Vara/Tjanst 5","Delområde 2/Vara/Tjanst 5","Delområde 3/Vara/Tjanst 5","Delområde 4/Vara/Tjanst 5","Delområde 5/Vara/Tjanst 5","Delområde 6/Vara/Tjanst 5",""]
[null,null,null,"Delområde 1/Vara/Tjanst 6","Delområde 2/Vara/Tjanst 6","Delområde 3/Vara/Tjanst 6","Delområde 4/Vara/Tjanst 6","Delområde 5/Vara/Tjanst 6","Delområde 6/Vara/Tjanst 6",""]
[null,null,null,"Delområde 1/Vara/Tjanst 7","Delområde 2/Vara/Tjanst 7","Delområde 3/Vara/Tjanst 7","Delområde 4/Vara/Tjanst 7","Delområde 5/Vara/Tjanst 7","Delområde 6/Vara/Tjanst 7",""]
[null,null,null,"Delområde 1/Vara/Tjanst 8","Delområde 2/Vara/Tjanst 8","Delområde 3/Vara/Tjanst 8","Delområde 4/Vara/Tjanst 8","Delområde 5/Vara/Tjanst 8","Delområde 6/Vara/Tjanst 8",""]
[null,null,null,"Delområde 1/Vara/Tjanst 9","Delområde 2/Vara/Tjanst 9","Delområde 3/Vara/Tjanst 9","Delområde 4/Vara/Tjanst 9","Delområde 5/Vara/Tjanst 9","Delområde 6/Vara/Tjanst 9",""]
[null,null,null,"Delområde 1/Vara/Tjanst 10","Delområde 2/Vara/Tjanst 10","Delområde 3/Vara/Tjanst 10","Delområde 4/Vara/Tjanst 10","Delområde 5/Vara/Tjanst 10","Delområde 6/Vara/Tjanst 10",""]
[null,null,null,"Delområde 1/Vara/Tjanst 11","Delområde 2/Vara/Tjanst 11","Delområde 3/Vara/Tjanst 11","Delområde 4/Vara/Tjanst 11","Delområde 5/Vara/Tjanst 11","Delområde 6/Vara/Tjanst 11",""]
[null,null,null,"Delområde 1/Vara/Tjanst 12","Delområde 2/Vara/Tjanst 12","Delområde 3/Vara/Tjanst 12","Delområde 4/Vara/Tjanst 12","Delområde 5/Vara/Tjanst 12","Delområde 6/Vara/Tjanst 12",""]
[null,null,null,"Delområde 1/Vara/Tjanst 13","Delområde 2/Vara/Tjanst 13","Delområde 3/Vara/Tjanst 13","Delområde 4/Vara/Tjanst 13","Delområde 5/Vara/Tjanst 13","Delområde 6/Vara/Tjanst 13",""]
[null,null,null,"Delområde 1/Vara/Tjanst 14","Delområde 2/Vara/Tjanst 14","Delområde 3/Vara/Tjanst 14","Delområde 4/Vara/Tjanst 14","Delområde 5/Vara/Tjanst 14","Delområde 6/Vara/Tjanst 14",""]
[null,null,null,"Delområde 1/Vara/Tjanst 15","Delområde 2/Vara/Tjanst 15","Delområde 3/Vara/Tjanst 15","Delområde 4/Vara/Tjanst 15","Delområde 5/Vara/Tjanst 15","Delområde 6/Vara/Tjanst 15",""]
[null,null,null,"Delområde 1/Vara/Tjanst 16","Delområde 2/Vara/Tjanst 16","Delområde 3/Vara/Tjanst 16","Delområde 4/Vara/Tjanst 16","Delområde 5/Vara/Tjanst 16","Delområde 6/Vara/Tjanst 16",""]
[null,null,null,"Delområde 1/Vara/Tjanst 17","Delområde 2/Vara/Tjanst 17","Delområde 3/Vara/Tjanst 17","Delområde 4/Vara/Tjanst 17","Delområde 5/Vara/Tjanst 17","Delområde 6/Vara/Tjanst 17",""]
[null,null,null,"Delområde 1/Vara/Tjanst 18","Delområde 2/Vara/Tjanst 18","Delområde 3/Vara/Tjanst 18","Delområde 4/Vara/Tjanst 18","Delområde 5/Vara/Tjanst 18","Delområde 6/Vara/Tjanst 18",""]
[null,null,null,"Delområde 1/Vara/Tjanst 19","Delområde 2/Vara/Tjanst 19","Delområde 3/Vara/Tjanst 19","Delområde 4/Vara/Tjanst 19","Delområde 5/Vara/Tjanst 19","Delområde 6/Vara/Tjanst 19",""]
[null,null,null,"Delområde 1/Vara/Tjanst 20","Delområde 2/Vara/Tjanst 20","Delområde 3/Vara/Tjanst 20","Delområde 4/Vara/Tjanst 20","Delområde 5/Vara/Tjanst 20","Delområde 6/Vara/Tjanst 20",""]
[null,null,null,"Delområde 1/Vara/Tjanst 21","Delområde 2/Vara/Tjanst 21","Delområde 3/Vara/Tjanst 21","Delområde 4/Vara/Tjanst 21","Delområde 5/Vara/Tjanst 21","Delområde 6/Vara/Tjanst 21",""]
[null,null,null,"Delområde 1/Vara/Tjanst 22","Delområde 2/Vara/Tjanst 22","Delområde 3/Vara/Tjanst 22","Delområde 4/Vara/Tjanst 22","Delområde 5/Vara/Tjanst 22","Delområde 6/Vara/Tjanst 22",""]
[null,null,null,"Delområde 1/Vara/Tjanst 23","Delområde 2/Vara/Tjanst 23","Delområde 3/Vara/Tjanst 23","Delområde 4/Vara/Tjanst 23","Delområde 5/Vara/Tjanst 23","Delområde 6/Vara/Tjanst 23",""]
[null,null,null,"Delområde 1/Vara/Tjanst 24","Delområde 2/Vara/Tjanst 24","Delområde 3/Vara/Tjanst 24","Delområde 4/Vara/Tjanst 24","Delområde 5/Vara/Tjanst 24","Delområde 6/Vara/Tjanst 24",""]
[null,null,null,"Delområde 1/Vara/Tjanst 25","Delområde 2/Vara/Tjanst 25","Delområde 3/Vara/Tjanst 25","Delområde 4/Vara/Tjanst 25","Delområde 5/Vara/Tjanst 25","Delområde 6/Vara/Tjanst 25",""]
[]
[null,null,null,null,null,null,null,null,null,"TblRegion"]
[null,null,null,"TblGrundTilldeln",null,"Tbl krav",null,"TblEnhet",null,"Ange region"]
[null,null,null,null,null,"Välj krav",null,"Styck",null,"SYD – Skåne, Blekinge, Kronoberg, Kalmar, Jönköping"]
[null,null,null,null,null,"Krav 1",null,"Timmar",null,"VÄST – Halland, Västra Götaland, Värmland"]
[null,null,null,"Alt. 2. Ekonomiskt mest fördelaktiga (bästa förhållande mellan pris och kvalitet)",null,"Krav 2",null,"Totalpris",null,"ÖST – Stockholm, Uppsala, Västmanland, Örebro, Södermanland, Östergötland, Gotland"]
[null,null,null,null,null,"Krav 3",null,"År",null,"Nedre Norrland – Dalarna, Gävleborg, Västernorrland, Jämtland"]
[null,null,null,"TblUtVrd",null,"Krav 4",null,"Bilaga",null,"Övre Norrland – Norrbotten, Västerbotten"]
[null,null,null,"Välj utvärdering…..",null,"Krav 5",null,null,null,"Rikstäckande - om avropet gäller fler än en region"]
[null,null,null,"Alt. 1. Lägsta pris",null,"Krav 6"]
[null,null,null,"Alt. 2. Relativ viktning - summan av viktade poäng för pris och uppfyllda bör-krav",null,"Se bilaga"]
[null,null,null,"Alt. 3. Mervärdesmodell - prisavdrag för uppfyllda bör-krav",null,null,null,"TblSäkSkyddAvtal"]
[null,null,null,"Alt. 4. Annan utvärderingsmodell",null,"ValBilaga",null,"Nivå 1"]
[null,null,null,null,null,null,null,"Nivå 2"]
[null,null,null,null,null,"Ja",null,"Nivå 3"]
[]
[null,null,null,null,null,null,null,"TblCertifieringar"]
[null,null,null,null,null,null,null,"SBF2006 Anläggarfirma F-gas"]
[null,null,null,null,null,null,null,"SBF2005 Brandskyddstekniker F-gas"]
[null,null,null,null,null,null,null,"SBF1020 Anläggarfirma vattensprinkler"]
[null,null,null,null,null,null,null,"SBF1018 Behörig ingenjör vattensprinkler"]
[null,null,null,null,null,null,null,"SBF1002 Anläggarfirma gassläcksystem"]
[null,null,null,null,null,null,null,"SBF1001 Behörig ingenjör gassläcksystem"]
[null,null,null,null,null,null,null,"SBF1008 Anläggarfirma brandlarm"]
[null,null,null,null,null,null,null,"SBF1007 Behörig ingenjör brandlarm"]
[null,null,"TblLeverantörer"]
[null,null,"Juridiskt Namn","Förvaltningens avtalsnummer ","Organisations-nummer","Adress","Postnummer","Postadress","Telefon Växel","Telefon kundtjänst","Hemsida","Kontaktperson ","Telefon","E-post kontaktperson","Befattning Kontaktperson","Fax","E-post Gruppbrevlåda"]
[]
[null,null,{"$f":"\"Välj \"&C80","v":"Välj Juridiskt Namn"},{"$f":"D80","v":"Förvaltningens avtalsnummer "},"Organisations-nummer","Adress","Postnummer","Postadress","Telefon Växel","Telefon kundtjänst","Hemsida","Kontaktperson ","Telefon","E-post kontaktperson","Befattning Kontaktperson","Fax","E-post Gruppbrevlåda"]
[null,null,"Välj Juridiskt Namn 2","Förvaltningens avtalsnummer  2","Organisations-nummer 2","Adress 2","Postnummer 2","Postadress 2","Telefon Växel 2","Telefon kundtjänst 2","Hemsida 2","Kontaktperson  2","Telefon 2","E-post kontaktperson 2","Befattning Kontaktperson 2","Fax 2","E-post Gruppbrevlåda 2"]
[]
[]
[]
[]
[]
[]
[]
[]
[]
[]
[]
[]
[]
[]
[]
[null,null,null,null,"TblKrv2",30,{"$f":"F99+1","v":31},{"$f":"G99+1","v":32},33,34,35,36,37,38,39,40,41,42,43,44,45,46,47,48,49,50,51,52,53]
[null,null,"TblSpecTjnstr",null,{"$f":"J29","v":""},{"$f":"INDIRECT(\"J\"&F99)","v":""},{"$f":"INDIRECT(\"J\"&G99)","v":""},"","","","","","","","","","","","",{"$f":"INDIRECT(\"J\"&T99)","v":""},"","","","","","","","",""]
[null,null,"Välj Vara/Tjanst",null,"Delområde 1/Vara/Tjanst 1/Krav1","Delområde 1/Vara/Tjanst 2/Krav1","Delområde 1/Vara/Tjanst 3/Krav1","Delområde 1/Vara/Tjanst 4/Krav1","Delområde 1/Vara/Tjanst 5/Krav1","Delområde 1/Vara/Tjanst 6/Krav1","Delområde 1/Vara/Tjanst 7/Krav1","Delområde 1/Vara/Tjanst 8/Krav1","Delområde 1/Vara/Tjanst 9/Krav1","Delområde 1/Vara/Tjanst 10/Krav1","Delområde 1/Vara/Tjanst 11/Krav1","Delområde 1/Vara/Tjanst 12/Krav1","Delområde 1/Vara/Tjanst 13/Krav1","Delområde 1/Vara/Tjanst 14/Krav1","Delområde 1/Vara/Tjanst 15/Krav1","Delområde 1/Vara/Tjanst 16/Krav1","Delområde 1/Vara/Tjanst 17/Krav1","Delområde 1/Vara/Tjanst 18/Krav1","Delområde 1/Vara/Tjanst 19/Krav1","Delområde 1/Vara/Tjanst 20/Krav1","Delområde 1/Vara/Tjanst 21/Krav1","Delområde 1/Vara/Tjanst 22/Krav1","Delområde 1/Vara/Tjanst 23/Krav1","Delområde 1/Vara/Tjanst 24/Krav1","Delområde 1/Vara/Tjanst 25/Krav1"]
[null,null,{"$f":"IF('1 Specifikation'!B127=\"\",\"\",'1 Specifikation'!B127)","v":"Välj vara/tjänst"},null,"Delområde 1/Vara/Tjanst 1/Krav2","Delområde 1/Vara/Tjanst 2/Krav2","Delområde 1/Vara/Tjanst 3/Krav2","Delområde 1/Vara/Tjanst 4/Krav2","Delområde 1/Vara/Tjanst 5/Krav2","Delområde 1/Vara/Tjanst 6/Krav2","Delområde 1/Vara/Tjanst 7/Krav2","Delområde 1/Vara/Tjanst 8/Krav2","Delområde 1/Vara/Tjanst 9/Krav2","Delområde 1/Vara/Tjanst 10/Krav2","Delområde 1/Vara/Tjanst 11/Krav2","Delområde 1/Vara/Tjanst 12/Krav2","Delområde 1/Vara/Tjanst 13/Krav2","Delområde 1/Vara/Tjanst 14/Krav2","Delområde 1/Vara/Tjanst 15/Krav2","Delområde 1/Vara/Tjanst 16/Krav2","Delområde 1/Vara/Tjanst 17/Krav2","Delområde 1/Vara/Tjanst 18/Krav2","Delområde 1/Vara/Tjanst 19/Krav2","Delområde 1/Vara/Tjanst 20/Krav2","Delområde 1/Vara/Tjanst 21/Krav2","Delområde 1/Vara/Tjanst 22/Krav2","Delområde 1/Vara/Tjanst 23/Krav2","Delområde 1/Vara/Tjanst 24/Krav2","Delområde 1/Vara/Tjanst 25/Krav2"]
[null,null,{"$f":"IF('1 Specifikation'!B128=\"\",\"\",'1 Specifikation'!B128)","v":"Välj vara/tjänst"},null,"Delområde 1/Vara/Tjanst 1/Krav3","Delområde 1/Vara/Tjanst 2/Krav3","Delområde 1/Vara/Tjanst 3/Krav3","Delområde 1/Vara/Tjanst 4/Krav3","Delområde 1/Vara/Tjanst 5/Krav3","Delområde 1/Vara/Tjanst 6/Krav3","Delområde 1/Vara/Tjanst 7/Krav3","Delområde 1/Vara/Tjanst 8/Krav3","Delområde 1/Vara/Tjanst 9/Krav3","Delområde 1/Vara/Tjanst 10/Krav3","Delområde 1/Vara/Tjanst 11/Krav3","Delområde 1/Vara/Tjanst 12/Krav3","Delområde 1/Vara/Tjanst 13/Krav3","Delområde 1/Vara/Tjanst 14/Krav3","Delområde 1/Vara/Tjanst 15/Krav3","Delområde 1/Vara/Tjanst 16/Krav3","Delområde 1/Vara/Tjanst 17/Krav3","Delområde 1/Vara/Tjanst 18/Krav3","Delområde 1/Vara/Tjanst 19/Krav3","Delområde 1/Vara/Tjanst 20/Krav3","Delområde 1/Vara/Tjanst 21/Krav3","Delområde 1/Vara/Tjanst 22/Krav3","Delområde 1/Vara/Tjanst 23/Krav3","Delområde 1/Vara/Tjanst 24/Krav3","Delområde 1/Vara/Tjanst 25/Krav3"]
[null,null,{"$f":"IF('1 Specifikation'!B129=\"\",\"\",'1 Specifikation'!B129)","v":"Välj vara/tjänst"},null,"Delområde 1/Vara/Tjanst 1/Krav4","Delområde 1/Vara/Tjanst 2/Krav4","Delområde 1/Vara/Tjanst 3/Krav4","Delområde 1/Vara/Tjanst 4/Krav4","Delområde 1/Vara/Tjanst 5/Krav4","Delområde 1/Vara/Tjanst 6/Krav4","Delområde 1/Vara/Tjanst 7/Krav4","Delområde 1/Vara/Tjanst 8/Krav4","Delområde 1/Vara/Tjanst 9/Krav4","Delområde 1/Vara/Tjanst 10/Krav4","Delområde 1/Vara/Tjanst 11/Krav4","Delområde 1/Vara/Tjanst 12/Krav4","Delområde 1/Vara/Tjanst 13/Krav4","Delområde 1/Vara/Tjanst 14/Krav4","Delområde 1/Vara/Tjanst 15/Krav4","Delområde 1/Vara/Tjanst 16/Krav4","Delområde 1/Vara/Tjanst 17/Krav4","Delområde 1/Vara/Tjanst 18/Krav4","Delområde 1/Vara/Tjanst 19/Krav4","Delområde 1/Vara/Tjanst 20/Krav4","Delområde 1/Vara/Tjanst 21/Krav4","Delområde 1/Vara/Tjanst 22/Krav4","Delområde 1/Vara/Tjanst 23/Krav4","Delområde 1/Vara/Tjanst 24/Krav4","Delområde 1/Vara/Tjanst 25/Krav4"]
[null,null,{"$f":"IF('1 Specifikation'!B130=\"\",\"\",'1 Specifikation'!B130)","v":"Välj vara/tjänst"},null,"Delområde 1/Vara/Tjanst 1/Krav5","Delområde 1/Vara/Tjanst 2/Krav5","Delområde 1/Vara/Tjanst 3/Krav5","Delområde 1/Vara/Tjanst 4/Krav5","Delområde 1/Vara/Tjanst 5/Krav5","Delområde 1/Vara/Tjanst 6/Krav5","Delområde 1/Vara/Tjanst 7/Krav5","Delområde 1/Vara/Tjanst 8/Krav5","Delområde 1/Vara/Tjanst 9/Krav5","Delområde 1/Vara/Tjanst 10/Krav5","Delområde 1/Vara/Tjanst 11/Krav5","Delområde 1/Vara/Tjanst 12/Krav5","Delområde 1/Vara/Tjanst 13/Krav5","Delområde 1/Vara/Tjanst 14/Krav5","Delområde 1/Vara/Tjanst 15/Krav5","Delområde 1/Vara/Tjanst 16/Krav5","Delområde 1/Vara/Tjanst 17/Krav5","Delområde 1/Vara/Tjanst 18/Krav5","Delområde 1/Vara/Tjanst 19/Krav5","Delområde 1/Vara/Tjanst 20/Krav5","Delområde 1/Vara/Tjanst 21/Krav5","Delområde 1/Vara/Tjanst 22/Krav5","Delområde 1/Vara/Tjanst 23/Krav5","Delområde 1/Vara/Tjanst 24/Krav5","Delområde 1/Vara/Tjanst 25/Krav5"]
[null,null,{"$f":"IF('1 Specifikation'!B131=\"\",\"\",'1 Specifikation'!B131)","v":"Välj vara/tjänst"},null,"Delområde 1/Vara/Tjanst 1/Krav6","Delområde 1/Vara/Tjanst 2/Krav6","Delområde 1/Vara/Tjanst 3/Krav6","Delområde 1/Vara/Tjanst 4/Krav6","Delområde 1/Vara/Tjanst 5/Krav6","Delområde 1/Vara/Tjanst 6/Krav6","Delområde 1/Vara/Tjanst 7/Krav6","Delområde 1/Vara/Tjanst 8/Krav6","Delområde 1/Vara/Tjanst 9/Krav6","Delområde 1/Vara/Tjanst 10/Krav6","Delområde 1/Vara/Tjanst 11/Krav6","Delområde 1/Vara/Tjanst 12/Krav6","Delområde 1/Vara/Tjanst 13/Krav6","Delområde 1/Vara/Tjanst 14/Krav6","Delområde 1/Vara/Tjanst 15/Krav6","Delområde 1/Vara/Tjanst 16/Krav6","Delområde 1/Vara/Tjanst 17/Krav6","Delområde 1/Vara/Tjanst 18/Krav6","Delområde 1/Vara/Tjanst 19/Krav6","Delområde 1/Vara/Tjanst 20/Krav6","Delområde 1/Vara/Tjanst 21/Krav6","Delområde 1/Vara/Tjanst 22/Krav6","Delområde 1/Vara/Tjanst 23/Krav6","Delområde 1/Vara/Tjanst 24/Krav6","Delområde 1/Vara/Tjanst 25/Krav6"]
[null,null,{"$f":"IF('1 Specifikation'!B132=\"\",\"\",'1 Specifikation'!B132)","v":"Välj vara/tjänst"},null,"Delområde 1/Vara/Tjanst 1/Krav7","Delområde 1/Vara/Tjanst 2/Krav7","Delområde 1/Vara/Tjanst 3/Krav7","Delområde 1/Vara/Tjanst 4/Krav7","Delområde 1/Vara/Tjanst 5/Krav7","Delområde 1/Vara/Tjanst 6/Krav7","Delområde 1/Vara/Tjanst 7/Krav7","Delområde 1/Vara/Tjanst 8/Krav7","Delområde 1/Vara/Tjanst 9/Krav7","Delområde 1/Vara/Tjanst 10/Krav7","Delområde 1/Vara/Tjanst 11/Krav7","Delområde 1/Vara/Tjanst 12/Krav7","Delområde 1/Vara/Tjanst 13/Krav7","Delområde 1/Vara/Tjanst 14/Krav7","Delområde 1/Vara/Tjanst 15/Krav7","Delområde 1/Vara/Tjanst 16/Krav7","Delområde 1/Vara/Tjanst 17/Krav7","Delområde 1/Vara/Tjanst 18/Krav7","Delområde 1/Vara/Tjanst 19/Krav7","Delområde 1/Vara/Tjanst 20/Krav7","Delområde 1/Vara/Tjanst 21/Krav7","Delområde 1/Vara/Tjanst 22/Krav7","Delområde 1/Vara/Tjanst 23/Krav7","Delområde 1/Vara/Tjanst 24/Krav7","Delområde 1/Vara/Tjanst 25/Krav7"]
[null,null,{"$f":"IF('1 Specifikation'!B133=\"\",\"\",'1 Specifikation'!B133)","v":"Välj vara/tjänst"},null,"Delområde 1/Vara/Tjanst 1/Krav8","Delområde 1/Vara/Tjanst 2/Krav8","Delområde 1/Vara/Tjanst 3/Krav8","Delområde 1/Vara/Tjanst 4/Krav8","Delområde 1/Vara/Tjanst 5/Krav8","Delområde 1/Vara/Tjanst 6/Krav8","Delområde 1/Vara/Tjanst 7/Krav8","Delområde 1/Vara/Tjanst 8/Krav8","Delområde 1/Vara/Tjanst 9/Krav8","Delområde 1/Vara/Tjanst 10/Krav8","Delområde 1/Vara/Tjanst 11/Krav8","Delområde 1/Vara/Tjanst 12/Krav8","Delområde 1/Vara/Tjanst 13/Krav8","Delområde 1/Vara/Tjanst 14/Krav8","Delområde 1/Vara/Tjanst 15/Krav8","Delområde 1/Vara/Tjanst 16/Krav8","Delområde 1/Vara/Tjanst 17/Krav8","Delområde 1/Vara/Tjanst 18/Krav8","Delområde 1/Vara/Tjanst 19/Krav8","Delområde 1/Vara/Tjanst 20/Krav8","Delområde 1/Vara/Tjanst 21/Krav8","Delområde 1/Vara/Tjanst 22/Krav8","Delområde 1/Vara/Tjanst 23/Krav8","Delområde 1/Vara/Tjanst 24/Krav8","Delområde 1/Vara/Tjanst 25/Krav8"]
[null,null,{"$f":"IF('1 Specifikation'!B134=\"\",\"\",'1 Specifikation'!B134)","v":"Välj vara/tjänst"},null,"Delområde 1/Vara/Tjanst 1/Krav9","Delområde 1/Vara/Tjanst 2/Krav9","Delområde 1/Vara/Tjanst 3/Krav9","Delområde 1/Vara/Tjanst 4/Krav9","Delområde 1/Vara/Tjanst 5/Krav9","Delområde 1/Vara/Tjanst 6/Krav9","Delområde 1/Vara/Tjanst 7/Krav9","Delområde 1/Vara/Tjanst 8/Krav9","Delområde 1/Vara/Tjanst 9/Krav9","Delområde 1/Vara/Tjanst 10/Krav9","Delområde 1/Vara/Tjanst 11/Krav9","Delområde 1/Vara/Tjanst 12/Krav9","Delområde 1/Vara/Tjanst 13/Krav9","Delområde 1/Vara/Tjanst 14/Krav9","Delområde 1/Vara/Tjanst 15/Krav9","Delområde 1/Vara/Tjanst 16/Krav9","Delområde 1/Vara/Tjanst 17/Krav9","Delområde 1/Vara/Tjanst 18/Krav9","Delområde 1/Vara/Tjanst 19/Krav9","Delområde 1/Vara/Tjanst 20/Krav9","Delområde 1/Vara/Tjanst 21/Krav9","Delområde 1/Vara/Tjanst 22/Krav9","Delområde 1/Vara/Tjanst 23/Krav9","Delområde 1/Vara/Tjanst 24/Krav9","Delområde 1/Vara/Tjanst 25/Krav9"]
[null,null,{"$f":"IF('1 Specifikation'!B135=\"\",\"\",'1 Specifikation'!B135)","v":"Välj vara/tjänst"}]
[null,null,{"$f":"IF('1 Specifikation'!B136=\"\",\"\",'1 Specifikation'!B136)","v":"Välj vara/tjänst"},null,{"$f":"IFERROR(RIGHT(INDIRECT(\"C\"&E112),LEN(INDIRECT(\"C\"&E112))-6),\"\")","v":"ara/tjänst"},"ara/tjänst","ara/tjänst","ara/tjänst","ara/tjänst","ara/tjänst","ara/tjänst","ara/tjänst","ara/tjänst","ara/tjänst","ara/tjänst","ara/tjänst","ara/tjänst","ara/tjänst","ara/tjänst","ara/tjänst","ara/tjänst","ara/tjänst","ara/tjänst","ara/tjänst"]
[null,null,{"$f":"IF('1 Specifikation'!B138=\"\",\"\",'1 Specifikation'!B138)","v":"Välj vara/tjänst"},null,102,{"$f":"E112+1","v":103},{"$f":"F112+1","v":104},105,106,107,108,109,110,111,112,113,114,115,116,117,118,119,120,121,122]
[null,null,{"$f":"IF('1 Specifikation'!B139=\"\",\"\",'1 Specifikation'!B139)","v":"Välj vara/tjänst"},null,"TblKrvRes1","TblKrvRes2","TblKrvRes3","TblKrvRes4","TblKrvRes5","TblKrvRes6","TblKrvRes7","TblKrvRes8","TblKrvRes9","TblKrvRes10","TblKrvRes11","TblKrvRes12","TblKrvRes13","TblKrvRes14","TblKrvRes15","TblKrvRes16","TblKrvRes17","TblKrvRes18","TblKrvRes19","TblKrvRes20"]
[null,null,{"$f":"IF('1 Specifikation'!B140=\"\",\"\",'1 Specifikation'!B140)","v":"Välj vara/tjänst"},null,{"$f":"IFERROR(INDEX($E101:$AC101,MATCH(E$111,$E$100:$AC$100,0)),\"\")","v":""},{"$f":"IFERROR(INDEX($E101:$AC101,MATCH(F$111,$E$100:$AC$100,0)),\"\")","v":""},"","","","","","","","","","","","","","","","","","",{"$f":"IFERROR(RIGHT(INDIRECT(\"C\"&Y112),LEN(INDIRECT(\"C\"&Y112))-6),\"\")","v":""}]
[null,null,{"$f":"IF('1 Specifikation'!B141=\"\",\"\",'1 Specifikation'!B141)","v":"Välj vara/tjänst"},null,{"$f":"IFERROR(INDEX($E102:$AC102,MATCH(E$111,$E$100:$AC$100,0)),\"\")","v":""},"","","","","","","","","","","","","","","","","","",""]
[null,null,{"$f":"IF('1 Specifikation'!B142=\"\",\"\",'1 Specifikation'!B142)","v":"Välj vara/tjänst"},null,"","","","","","","","","","","","","","","","","","","",""]
[null,null,{"$f":"IF('1 Specifikation'!B143=\"\",\"\",'1 Specifikation'!B143)","v":"Välj vara/tjänst"},null,"","","","","","","","","","","","","","","","","","","",""]
[null,null,{"$f":"IF('1 Specifikation'!B144=\"\",\"\",'1 Specifikation'!B144)","v":"Välj vara/tjänst"},null,"","","","","","","","","","","","","","","","","","","",""]
[null,null,{"$f":"IF('1 Specifikation'!B145=\"\",\"\",'1 Specifikation'!B145)","v":"Välj vara/tjänst"},null,"","","","","","","","","","","","","","","","","","","",""]
[null,null,{"$f":"IF('1 Specifikation'!B146=\"\",\"\",'1 Specifikation'!B146)","v":"Välj vara/tjänst"},null,"","","","","","","","","","","","","","","","","","","",""]
[null,null,{"$f":"IF('1 Specifikation'!B147=\"\",\"\",'1 Specifikation'!B147)","v":"Välj vara/tjänst"},null,"","","","","","","","","","","","","","","","","","","",""]
[null,null,{"$f":"IF('1 Specifikation'!C68=\"\",\"\",'1 Specifikation'!B68&\" - \"&'1 Specifikation'!C68)","v":""},null,"","","","","","","","","","","","","","","","","","","",""]
[]
[]
[null,null,"TblVarTjResultat","Säkerhetssystem","Konsulter för säkerhetssystem","Brandskydd"]
[null,null,{"$f":"IFERROR(INDEX($D127:$F127,,MATCH('1 Specifikation'!$B$40,Admin!$D$125:$F$125,0)),\"\")","v":0},"TblVarTjSäkerhetsystem","TblVarTjKonsulterFörSäksys","TblVarTjBrandskydd"]
[null,null,"Välj vara/tjänst"]
[null,null,{"$f":"IFERROR(INDEX($D128:$F128,,MATCH('1 Specifikation'!$B$40,Admin!$D$125:$F$125,0)),\"\")","v":"Brandredskap"},"Inbrottslarm","Riskanalys/riskhantering","Brandredskap"]
[null,null,{"$f":"IFERROR(INDEX($D129:$F129,,MATCH('1 Specifikation'!$B$40,Admin!$D$125:$F$125,0)),\"\")","v":"Brandposter"},"Överfallslarm","Projektering","Brandposter"]
[null,null,{"$f":"IFERROR(INDEX($D130:$F130,,MATCH('1 Specifikation'!$B$40,Admin!$D$125:$F$125,0)),\"\")","v":"Skyltar"},"Passerkontrollsystem inkl. kodbärare och porttelefon","Besiktning","Skyltar"]
[null,null,{"$f":"IFERROR(INDEX($D131:$F131,,MATCH('1 Specifikation'!$B$40,Admin!$D$125:$F$125,0)),\"\")","v":"Utrymningsprodukter"},"CCTV (kamerateknik för övervakning)",null,"Utrymningsprodukter"]
[null,null,{"$f":"IFERROR(INDEX($D132:$F132,,MATCH('1 Specifikation'!$B$40,Admin!$D$125:$F$125,0)),\"\")","v":"Nödbelysning"},"Brandlarmssystem",null,"Nödbelysning"]
[null,null,{"$f":"IFERROR(INDEX($D133:$F133,,MATCH('1 Specifikation'!$B$40,Admin!$D$125:$F$125,0)),\"\")","v":"Skyddsutrustning"},"Service och underhåll",null,"Skyddsutrustning"]
[null,null,{"$f":"IFERROR(INDEX($D134:$F134,,MATCH('1 Specifikation'!$B$40,Admin!$D$125:$F$125,0)),\"\")","v":"Service, underhåll, översyn"},"Öppna säkerhetssystem för inbrottslarm, passerkontrollsystem och CCTV",null,"Service, underhåll, översyn"]
[null,null,{"$f":"IFERROR(INDEX($D135:$F135,,MATCH('1 Specifikation'!$B$40,Admin!$D$125:$F$125,0)),\"\")","v":"Utbildning, rådgivning, dokumentation"},"Integrerade systemlösningar inkl. överordnat system",null,"Utbildning, rådgivning, dokumentation"]
[null,null,{"$f":"IFERROR(INDEX($D136:$F136,,MATCH('1 Specifikation'!$B$40,Admin!$D$125:$F$125,0)),\"\")","v":"Fasta släcksystem"},"Elektromekaniska lås och låssystem",null,"Fasta släcksystem"]
[null,null,{"$f":"IFERROR(INDEX($D137:$F137,,MATCH('1 Specifikation'!$B$40,Admin!$D$125:$F$125,0)),\"\")","v":0},"Mekaniska lås"]
[null,null,{"$f":"IFERROR(INDEX($D138:$F138,,MATCH('1 Specifikation'!$B$40,Admin!$D$125:$F$125,0)),\"\")","v":0},"Inpasseringsspärrar/entrégrindar"]
[null,null,{"$f":"IFERROR(INDEX($D139:$F139,,MATCH('1 Specifikation'!$B$40,Admin!$D$125:$F$125,0)),\"\")","v":0},"Mekaniskt inbrottsskydd"]
[null,null,{"$f":"IFERROR(INDEX($D140:$F140,,MATCH('1 Specifikation'!$B$40,Admin!$D$125:$F$125,0)),\"\")","v":0},"Säkerhetssystem för hängning och larmande av flyttbara objekt"]
[null,null,{"$f":"IFERROR(INDEX($D141:$F141,,MATCH('1 Specifikation'!$B$40,Admin!$D$125:$F$125,0)),\"\")","v":0},"Fjärrtjänster A (support, administration och driftövervakning av säkerhetssystem)"]
[null,null,{"$f":"IFERROR(INDEX($D142:$F142,,MATCH('1 Specifikation'!$B$40,Admin!$D$125:$F$125,0)),\"\")","v":0},"Fjärrtjänster B (via larmcentral med operatörer övervaka objekt samt vidta åtgärder vid eventuella tillbud)"]
[]
[null,null,"TblValdaVarTj"]
[]
[null,null,"Välj vara/tjänst"]
[null,null,{"$f":"IF(OR('1 Specifikation'!C48=\"Välj vara/tjänst\",'1 Specifikation'!C48=\"\"),\"\",'1 Specifikation'!B48&\" \"&'1 Specifikation'!C48)","v":""}]
[null,null,{"$f":"IF(OR('1 Specifikation'!C49=\"Välj vara/tjänst\",'1 Specifikation'!C49=\"\"),\"\",'1 Specifikation'!B49&\" \"&'1 Specifikation'!C49)","v":""}]
[null,null,{"$f":"IF(OR('1 Specifikation'!C50=\"Välj vara/tjänst\",'1 Specifikation'!C50=\"\"),\"\",'1 Specifikation'!B50&\" \"&'1 Specifikation'!C50)","v":""}]
[null,null,{"$f":"IF(OR('1 Specifikation'!C51=\"Välj vara/tjänst\",'1 Specifikation'!C51=\"\"),\"\",'1 Specifikation'!B51&\" \"&'1 Specifikation'!C51)","v":""}]
[null,null,{"$f":"IF(OR('1 Specifikation'!C52=\"Välj vara/tjänst\",'1 Specifikation'!C52=\"\"),\"\",'1 Specifikation'!B52&\" \"&'1 Specifikation'!C52)","v":""}]
[null,null,{"$f":"IF(OR('1 Specifikation'!C53=\"Välj vara/tjänst\",'1 Specifikation'!C53=\"\"),\"\",'1 Specifikation'!B53&\" \"&'1 Specifikation'!C53)","v":""}]
[null,null,{"$f":"IF(OR('1 Specifikation'!C54=\"Välj vara/tjänst\",'1 Specifikation'!C54=\"\"),\"\",'1 Specifikation'!B54&\" \"&'1 Specifikation'!C54)","v":""}]
[null,null,{"$f":"IF(OR('1 Specifikation'!C55=\"Välj vara/tjänst\",'1 Specifikation'!C55=\"\"),\"\",'1 Specifikation'!B55&\" \"&'1 Specifikation'!C55)","v":""}]
[null,null,{"$f":"IF(OR('1 Specifikation'!C56=\"Välj vara/tjänst\",'1 Specifikation'!C56=\"\"),\"\",'1 Specifikation'!B56&\" \"&'1 Specifikation'!C56)","v":""}]
[null,null,{"$f":"IF(OR('1 Specifikation'!C57=\"Välj vara/tjänst\",'1 Specifikation'!C57=\"\"),\"\",'1 Specifikation'!B57&\" \"&'1 Specifikation'!C57)","v":""}]
[null,null,{"$f":"IF(OR('1 Specifikation'!C58=\"Välj vara/tjänst\",'1 Specifikation'!C58=\"\"),\"\",'1 Specifikation'!B58&\" \"&'1 Specifikation'!C58)","v":""}]
[null,null,{"$f":"IF(OR('1 Specifikation'!C59=\"Välj vara/tjänst\",'1 Specifikation'!C59=\"\"),\"\",'1 Specifikation'!B59&\" \"&'1 Specifikation'!C59)","v":""}]
[null,null,{"$f":"IF(OR('1 Specifikation'!C60=\"Välj vara/tjänst\",'1 Specifikation'!C60=\"\"),\"\",'1 Specifikation'!B60&\" \"&'1 Specifikation'!C60)","v":""}]
[null,null,{"$f":"IF(OR('1 Specifikation'!C61=\"Välj vara/tjänst\",'1 Specifikation'!C61=\"\"),\"\",'1 Specifikation'!B61&\" \"&'1 Specifikation'!C61)","v":""}]
[null,null,{"$f":"IF(OR('1 Specifikation'!C62=\"Välj vara/tjänst\",'1 Specifikation'!C62=\"\"),\"\",'1 Specifikation'!B62&\" \"&'1 Specifikation'!C62)","v":""}]
[null,null,{"$f":"IF(OR('1 Specifikation'!C63=\"Välj vara/tjänst\",'1 Specifikation'!C63=\"\"),\"\",'1 Specifikation'!B63&\" \"&'1 Specifikation'!C63)","v":""}]
[null,null,{"$f":"IF(OR('1 Specifikation'!C64=\"Välj vara/tjänst\",'1 Specifikation'!C64=\"\"),\"\",'1 Specifikation'!B64&\" \"&'1 Specifikation'!C64)","v":""}]
[null,null,{"$f":"IF(OR('1 Specifikation'!C65=\"Välj vara/tjänst\",'1 Specifikation'!C65=\"\"),\"\",'1 Specifikation'!B65&\" \"&'1 Specifikation'!C65)","v":""}]
[null,null,{"$f":"IF(OR('1 Specifikation'!C66=\"Välj vara/tjänst\",'1 Specifikation'!C66=\"\"),\"\",'1 Specifikation'!B66&\" \"&'1 Specifikation'!C66)","v":""}]
[null,null,{"$f":"IF(OR('1 Specifikation'!C67=\"Välj vara/tjänst\",'1 Specifikation'!C67=\"\"),\"\",'1 Specifikation'!B67&\" \"&'1 Specifikation'!C67)","v":""}]

{"sheet":"SysAdmin","index":3,"n_rows":9,"n_cols":5,"rows_kept":9,"cut":false,"hidden":true,"merged":[]}
["LockStatus",false]
["UKey","Förvaltning21",null,2,{"$f":"INDEX(E3:E5,D2)","v":"Avroppsblanketten är nu upplåst, klicka här för att låsa avropsblanketten."}]
["pkey","Förvaltning21",null,null,"Adminläge! Klicka här för att låsa vita celler."]
["Wkey","Förvaltning21","RGB",null,"Avroppsblanketten är nu upplåst, klicka här för att låsa avropsblanketten."]
["YColor"," ","255, 255, 153",null,"Avroppsblanketten är nu låst, klicka här för att låsa upp avropsblanketten."]
[null,null,"204, 255, 255"]
[null,null,"150, 150, 150",null,"Grund för tilldelning av kontrakt & Utvärderingsmodell"]
[null,null,"204, 255, 204",null,{"$f":"VALUE(IF(ISNUMBER(SEARCH(\"2\",DpDwnTDV))=TRUE,\"2\",\"1\"))","v":2}]
[null,null,"250, 191, 143",null,{"$f":"\"Alt\"&IF(ISNUMBER(SEARCH(\"1\",DpDwnUtvddrop))=TRUE,\"1\",IF(ISNUMBER(SEARCH(\"2\",DpDwnUtvddrop))=TRUE,\"2\",IF(ISNUMBER(SEARCH(\"3\",DpDwnUtvddrop))=TRUE,\"3\",IF(ISNUMBER(SEARCH(\"4\",DpDwnUtvddrop))=TRUE,\"4\"))))","v":"AltFALSE"}]